bitfinex/quotes_ETHUSD_20250406
["timestamp","ask_amount","ask_price","bid_price","bid_amount"]
[1743921507465,6.87643,1805.8,1805.5,0.59645293]
[1743921508664,3.0,1805.8,1805.5,4.47340293]
[1743921510904,3.0,1805.8,1805.6,0.7606]
[1743921511401,3.0,1805.8,1805.7,0.59869078]
[1743921511602,12.166008,1805.8,1805.7,0.59869078]
[1743921511837,12.948808,1805.8,1805.7,0.59869078]
[1743921512146,3.87663,1805.7,1805.3,9.09135]
[1743921512443,3.87663,1805.7,1805.3,3.87735]
[1743921512607,3.87663,1805.7,1805.3,7.75471]
[1743921512807,3.87663,1805.7,1805.4,3.87725]
[1743921513007,3.87663,1805.7,1805.3,5.249981]
[1743921513638,3.87663,1805.7,1805.3,9.127321]
[1743921514250,3.87663,1805.7,1805.3,3.87734]
[1743921517404,3.87663,1805.7,1805.3,7.75467]
[1743921517837,3.87663,1805.7,1805.3,7.81005654]
[1743921518041,12.948868,1805.8,1805.4,3.87722]
[1743921518211,7.0,1805.8,1805.5,4.63755]
[1743921518728,7.0,1805.8,1805.6,0.59867801]
[1743921519538,12.56603,1805.8,1805.6,0.59867801]
[1743921519929,12.56603,1805.8,1805.4,4.6378]
[1743921520104,12.56603,1805.8,1805.7,0.59861382]
[1743921520306,12.56603,1805.8,1805.4,4.6378]
[1743921520507,12.56603,1805.8,1805.7,0.59861382]
[1743921520748,12.56603,1805.8,1805.4,4.6378]
[1743921520917,12.56603,1805.8,1805.7,0.59861382]
[1743921521122,12.56603,1805.8,1805.4,4.6378]
[1743921521604,12.56603,1805.8,1805.5,0.59874222]
[1743921522103,16.44259,1805.8,1805.5,0.59874222]
[1743921523430,2.21172035,1805.7,1805.5,0.59874222]
[1743921523739,0.754,1805.7,1805.5,0.59874222]
[1743921524244,4.63062,1805.7,1805.5,0.59874222]
[1743921524960,3.87682,1805.6,1805.5,0.59874222]
[1743921525251,3.87682,1805.6,1805.2,13.7121]
[1743921525457,3.87682,1805.6,1805.5,0.59874222]
[1743921525625,4.727564,1805.6,1805.2,13.7121]
[1743921525951,4.727564,1805.6,1805.5,0.59874222]
[1743921526457,4.727564,1805.6,1805.3,3.87746]
[1743921526638,3.87682,1805.6,1805.5,0.59874222]
[1743921528455,8.47541603,1805.6,1805.5,0.59878072]
[1743921528756,0.7894,1805.5,1805.1,7.80576]
[1743921528953,0.7894,1805.5,1805.1,9.186546]
[1743921530263,4.66648,1805.5,1805.1,5.308666]
[1743921530438,4.66648,1805.5,1805.1,7.80564]
[1743921530815,0.7894,1805.5,1805.2,3.87766]
[1743921532842,4.6665,1805.5,1805.1,3.92776]
[1743921533648,4.6665,1805.5,1805.2,0.59897338]
[1743921534145,4.6665,1805.5,1805.1,3.92776]
[1743921534365,4.6665,1805.5,1805.2,0.59897338]
[1743921534649,4.6665,1805.5,1805.1,3.92776]
[1743921534856,4.6665,1805.5,1805.3,0.59890915]
[1743921535043,4.6665,1805.5,1805.2,0.59897338]
[1743921535240,4.6665,1805.5,1805.4,0.59884493]
[1743921535753,4.6665,1805.5,1805.1,7.80552]
[1743921536137,4.6665,1805.5,1805.2,0.59897338]
[1743921536457,4.6665,1805.5,1805.1,3.92776]
[1743921536657,4.6665,1805.5,1805.3,0.59890915]
[1743921536859,4.6665,1805.5,1805.2,0.59897338]
[1743921537059,4.6665,1805.5,1805.4,0.59884493]
[1743921537225,4.6665,1805.5,1805.3,0.59890915]
[1743921537649,4.6665,1805.5,1805.1,3.92776]
[1743921537820,4.6665,1805.5,1805.4,0.59884493]
[1743921538029,4.6665,1805.5,1805.1,3.92776]
[1743921538234,4.6665,1805.5,1805.4,0.59884493]
[1743921538425,4.6665,1805.5,1805.1,7.80552]
[1743921538625,4.6665,1805.5,1805.4,0.59884493]
[1743921539358,4.6665,1805.5,1805.1,7.80552]
[1743921539530,4.6665,1805.5,1805.2,0.59897338]
[1743921539723,4.6665,1805.5,1805.1,7.80552]
[1743921540126,0.7894,1805.5,1805.2,4.47662338]
[1743921540758,13.30395821,1805.6,1805.2,4.47662338]
[1743921541246,17.18092821,1805.6,1805.2,4.47662338]
[1743921541960,13.30395821,1805.6,1805.2,4.47662338]
[1743921542763,18.97794703,1805.6,1805.2,4.47662338]
[1743921543658,4.66646,1805.5,1805.2,0.59897338]
[1743921543865,7.66687,1805.3,1805.2,0.59897338]
[1743921544063,7.66708,1805.2,1805.1,0.05]
[1743921544249,12.6671573,1805.2,1805.1,0.05]
[1743921544640,12.6671573,1805.2,1805.1,0.64923003]
[1743921544854,12.6671573,1805.2,1805.1,0.05]
[1743921545659,12.6671573,1805.2,1805.1,0.64923003]
[1743921545866,16.6671573,1805.2,1805.1,0.64923003]
[1743921546243,12.6671573,1805.2,1805.1,0.64923003]
[1743921549260,16.6671573,1805.2,1805.1,0.64923003]
[1743921551377,4.0,1805.2,1805.1,0.64923003]
[1743921551554,4.0,1805.2,1805.1,4.52713003]
[1743921551957,4.0,1805.2,1805.1,0.64923003]
[1743921553083,6.02,1805.3,1805.1,0.64923003]
[1743921553269,6.02,1805.3,1805.1,4.52706003]
[1743921553791,6.02,1805.3,1805.1,0.64923003]
[1743921554292,3.8773,1805.4,1805.1,4.52711003]
[1743921555289,3.8773,1805.4,1805.2,0.7845]
[1743921555489,4.0,1805.3,1805.2,0.7845]
[1743921555648,9.02,1805.5,1805.3,0.60121937]
[1743921555843,9.02,1805.5,1805.2,5.2634636]
[1743921556049,6.02,1805.5,1805.4,0.60071224]
[1743921556249,6.02,1805.5,1805.3,0.60077646]
[1743921556449,6.02,1805.5,1805.4,0.60071224]
[1743921556692,4.0,1805.5,1805.4,0.60071224]
[1743921556980,4.0,1805.5,1805.4,4.9309106]
[1743921557172,4.0,1805.5,1805.4,5.7154106]
[1743921558049,3.0,1805.8,1805.6,3.8768]
[1743921558249,4.0,1805.7,1805.6,3.8768]
[1743921558683,4.0,1805.7,1805.6,4.6613]
[1743921559044,4.0,1805.7,1805.6,5.515133]
[1743921559474,3.0,1805.9,1805.6,5.515133]
[1743921559981,10.30396879,1806.1,1805.7,4.66096]
[1743921560185,4.0,1805.8,1805.7,4.66096]
[1743921560388,4.0,1805.8,1805.7,5.6001213]
[1743921560979,14.9179103,1806.4,1806.0,4.66025]
[1743921560980,11.0427903,1806.4,1806.0,4.66025]
[1743921561187,4.0,1806.1,1806.0,4.66025]
[1743921563284,14.09172631,1806.4,1806.0,4.66025]
[1743921563285,3.0,1806.3,1806.0,4.66025]
[1743921563583,6.87534,1806.3,1806.1,0.59704859]
[1743921565199,10.75084,1806.3,1806.1,0.59704859]
[1743921565356,8.8656203,1806.2,1806.1,0.59704859]
[1743921565551,3.87617,1806.0,1805.6,9.81802]
[1743921565800,3.87617,1806.0,1805.7,0.59720912]
[1743921565801,7.75234,1806.0,1805.7,0.59720912]
[1743921566454,3.87621,1805.9,1805.7,0.59720912]
[1743921566655,4.63291,1805.9,1805.7,0.59720912]
[1743921566855,3.87617,1806.0,1805.7,0.59720912]
[1743921570296,3.87616,1806.0,1805.7,0.59720912]
[1743921570501,3.87619,1805.9,1805.7,0.59720912]
[1743921571094,3.87616,1806.0,1805.7,0.59720912]
[1743921573866,3.0,1806.0,1805.7,5.38407803]
[1743921575084,3.0,1806.0,1805.7,1.50758803]
[1743921575284,6.87606,1806.0,1805.7,0.59720912]
[1743921575793,3.0,1806.0,1805.7,4.47378912]
[1743921578313,6.87597,1806.0,1805.7,0.59720912]
[1743921582331,3.0,1806.0,1805.7,4.47380912]
[1743921584502,6.87597,1806.0,1805.7,4.47380912]
[1743921585618,6.87597,1806.0,1805.7,0.59720912]
[1743921585932,3.0,1806.0,1805.7,4.47368912]
[1743921586133,3.0,1806.0,1805.8,0.7811]
[1743921586521,3.0,1806.0,1805.9,0.59740779]
[1743921588853,7.65546,1806.0,1805.9,0.59740779]
[1743921589217,11.53158,1806.0,1805.6,3.87682]
[1743921589419,3.87626,1805.9,1805.7,0.59745921]
[1743921589632,3.87639,1805.8,1805.4,4.64804]
[1743921589834,3.87639,1805.8,1805.5,0.59758761]
[1743921589835,6.87639,1805.8,1805.5,0.59758761]
[1743921592345,7.30141479,1805.8,1805.5,0.59758761]
[1743921592845,3.87682,1805.6,1805.5,0.59758761]
[1743921593046,3.87682,1805.6,1805.2,13.69202]
[1743921593353,6.87682,1805.6,1805.5,0.59758761]
[1743921593519,7.75381,1805.6,1805.2,4.64834]
[1743921593715,10.75381,1805.6,1805.5,0.59758761]
[1743921593920,6.87719,1805.5,1805.1,3.92785]
[1743921595250,6.87719,1805.5,1805.1,3.98324168]
[1743921595441,3.87682,1805.6,1805.2,1.16912417]
[1743921595654,3.87682,1805.6,1805.2,5.04672417]
[1743921595820,7.65611,1805.7,1805.2,5.04672417]
[1743921595821,7.65611,1805.7,1805.3,3.93276162]
[1743921596017,4.30144479,1805.8,1805.4,0.7708]
[1743921596221,4.30144479,1805.8,1805.4,4.64796]
[1743921596450,4.30144479,1805.8,1805.5,3.87702]
[1743921596819,3.42502479,1805.8,1805.5,3.87702]
[1743921597016,7.30142479,1805.8,1805.5,4.729527]
[1743921598216,7.30142479,1805.8,1805.5,0.852507]
[1743921598418,7.30142479,1805.8,1805.4,4.64805]
[1743921598754,7.30142479,1805.8,1805.4,8.58060314]
[1743921600148,3.87663,1805.7,1805.4,0.7708]
[1743921600449,3.87663,1805.7,1805.3,3.87742]
[1743921600654,3.87663,1805.7,1805.3,3.87733]
[1743921600849,3.87663,1805.7,1805.3,4.38197542]
[1743921601019,3.87663,1805.7,1805.4,3.87725]
[1743921601419,11.53483509,1805.8,1805.4,3.87725]
[1743921603381,11.53483509,1805.8,1805.4,4.66055]
[1743921603537,3.42502479,1805.8,1805.5,3.87703]
[1743921604277,3.42502479,1805.8,1805.5,4.73632642]
[1743921605269,7.30143479,1805.8,1805.5,4.73632642]
[1743921605487,6.87641,1805.8,1805.5,3.87703]
[1743921607270,10.31330309,1805.9,1805.5,7.75392]
[1743921607458,10.31330309,1805.9,1805.5,3.87689]
[1743921608074,10.31330309,1805.9,1805.5,7.75378]
[1743921608246,10.31330309,1805.9,1805.6,0.8154]
[1743921608733,10.31330309,1805.9,1805.7,0.59859459]
[1743921611283,6.43695309,1805.9,1805.7,0.59859459]
[1743921611459,3.87577,1806.1,1805.7,1.12767505]
[1743921611659,3.87556,1806.2,1805.8,4.6917]
[1743921611865,7.75125,1806.2,1805.9,0.59811979]
[1743921612177,3.8758,1806.1,1805.9,0.59811979]
[1743921614581,7.75176,1806.1,1805.9,0.59811979]
[1743921614871,8.15813628,1806.1,1805.9,0.59811979]
[1743921615079,4.28217628,1806.1,1805.9,0.59811979]
[1743921618082,4.28217628,1806.1,1805.7,4.69187]
[1743921618376,4.28217628,1806.1,1806.0,0.59805562]
[1743921618582,8.28217628,1806.1,1805.8,0.469187]
[1743921618769,8.28217628,1806.1,1806.0,0.59805562]
[1743921618972,8.28217628,1806.1,1805.9,0.59811979]
[1743921619181,8.28217628,1806.1,1806.0,0.59805562]
[1743921619859,8.28217628,1806.1,1805.8,0.469187]
[1743921620058,8.28217628,1806.1,1805.9,0.59811979]
[1743921622500,0.7599,1806.0,1805.9,0.59811979]
[1743921622854,4.63595,1806.0,1805.6,3.87669]
[1743921623055,4.63595,1806.0,1805.7,0.5979595]
[1743921623382,3.87619,1805.9,1805.7,0.5979595]
[1743921623696,3.87619,1805.9,1805.5,4.69493]
[1743921623697,8.1095803,1805.9,1805.5,4.69493]
[1743921623857,8.1095803,1805.9,1805.8,0.59762591]
[1743921624182,8.1095803,1805.9,1805.5,4.69493]
[1743921624378,8.1095803,1805.9,1805.8,0.59762591]
[1743921624598,8.1095803,1805.9,1805.5,4.69493]
[1743921624770,8.1095803,1805.9,1805.8,0.59762591]
[1743921624965,12.1095803,1805.9,1805.5,4.69493]
[1743921625170,12.1095803,1805.9,1805.8,0.59762591]
[1743921625371,15.9859203,1805.9,1805.5,4.69493]
[1743921625596,15.9859203,1805.9,1805.8,0.59762591]
[1743921625796,3.87647,1805.8,1805.5,0.8179]
[1743921626170,0.7599,1805.7,1805.3,5.19982542]
[1743921626592,4.63659,1805.7,1805.3,1.32254542]
[1743921626785,4.63659,1805.7,1805.1,0.8679]
[1743921626786,3.87734,1805.4,1805.1,0.8679]
[1743921627106,8.1105103,1805.5,1805.1,0.8679]
[1743921627304,3.87712,1805.5,1805.1,0.8679]
[1743921627712,3.87712,1805.5,1805.1,4.74578]
[1743921629575,3.87712,1805.5,1805.1,4.80117204]
[1743921629772,3.87712,1805.5,1805.1,5.66908124]
[1743921630812,3.87712,1805.5,1805.1,5.6136892]
[1743921631188,3.87683,1805.6,1805.2,3.87764]
[1743921631389,9.89665,1805.7,1805.4,0.7607]
[1743921631602,10.30821837,1805.7,1805.4,0.7607]
[1743921632621,6.43156837,1805.7,1805.4,0.7607]
[1743921632921,6.43156837,1805.7,1805.4,4.63795]
[1743921633085,6.43156837,1805.7,1805.4,0.7607]
[1743921633486,10.30817837,1805.7,1805.4,0.7607]
[1743921636840,3.87702,1805.6,1805.4,0.7607]
[1743921637118,3.87702,1805.6,1805.2,4.63838]
[1743921637619,3.87702,1805.6,1805.2,8.51606]
[1743921638612,16.71143951,1805.7,1805.2,8.51606]
[1743921638818,16.71143951,1805.7,1805.3,0.71416094]
[1743921639528,20.58821951,1805.7,1805.3,0.71416094]
[1743921640321,0.7514,1805.4,1805.3,0.71416094]
[1743921640820,4.62865,1805.4,1805.3,0.71416094]
[1743921641015,3.87762,1805.3,1805.1,0.05]
[1743921641208,7.75526,1805.3,1805.1,0.05]
[1743921642323,4.66708,1805.2,1805.1,0.05]
[1743921642910,8.66708,1805.2,1805.1,0.05]
[1743921643278,11.66708,1805.2,1805.1,0.05]
[1743921643525,17.68708,1805.2,1805.1,0.05]
[1743921644121,3.87923,1804.5,1804.1,0.8492]
[1743921644337,8.1126203,1804.5,1804.1,0.8492]
[1743921644621,3.0,1804.9,1804.4,4.67851]
[1743921644915,18.9210003,1805.0,1804.5,3.87909]
[1743921645122,14.9210003,1805.0,1804.5,7.75809]
[1743921645334,8.8120303,1804.8,1804.3,3.87942]
[1743921645501,8.8120303,1804.8,1804.4,3.87937]
[1743921645826,8.8120303,1804.8,1804.3,7.75895]
[1743921646021,3.87877,1804.7,1804.3,3.87942]
[1743921646236,0.7894,1804.7,1804.3,8.744012]
[1743921646397,0.7,1804.8,1804.7,4.67796]
[1743921646802,6.02,1805.0,1804.7,8.55672]
[1743921647389,6.02,1805.0,1804.8,3.87853]
[1743921647722,10.30947388,1805.2,1804.8,3.87853]
[1743921647934,6.02,1805.2,1804.8,3.87841]
[1743921648314,9.89768,1805.2,1804.8,3.87841]
[1743921648519,10.31659704,1805.2,1804.8,3.87841]
[1743921648934,12.32335237,1805.2,1804.8,3.87841]
[1743921650062,6.43891704,1805.2,1804.8,3.87841]
[1743921650355,6.43891704,1805.2,1804.9,3.87824]
[1743921650715,6.43891704,1805.2,1804.8,3.87841]
[1743921651543,6.43891704,1805.2,1805.0,0.8274]
[1743921651938,3.7894,1805.4,1805.0,4.70535]
[1743921652145,44.2545903,1805.5,1805.0,5.18142522]
[1743921652348,40.3773903,1805.5,1805.1,3.87785]
[1743921652535,35.1993903,1805.5,1805.1,3.87785]
[1743921652735,10.2533903,1805.5,1805.1,3.87785]
[1743921653756,10.2533903,1805.5,1805.2,0.7163218]
[1743921654115,10.2533903,1805.5,1805.1,3.87785]
[1743921654351,10.2533903,1805.5,1805.3,0.71624847]
[1743921654571,10.2533903,1805.5,1805.2,0.7163218]
[1743921654847,11.95123453,1805.5,1805.3,0.71624847]
[1743921655042,15.82831453,1805.5,1805.1,3.87785]
[1743921655220,15.82831453,1805.5,1805.2,0.7163218]
[1743921655420,15.82831453,1805.5,1805.1,3.87785]
[1743921655621,15.82831453,1805.5,1805.2,0.7163218]
[1743921655840,15.82831453,1805.5,1804.8,4.70582]
[1743921655841,8.1108603,1805.3,1804.8,4.70582]
[1743921656045,12.1108603,1805.3,1804.9,0.65652892]
[1743921657582,12.1108603,1805.3,1804.9,4.53481892]
[1743921657944,8.2333903,1805.3,1804.9,8.41297892]
[1743921658379,4.0,1805.3,1805.0,3.87811]
[1743921658886,7.87755,1805.3,1805.1,0.65638222]
[1743921659053,7.87755,1805.3,1804.9,3.87816]
[1743921659253,12.1109403,1805.3,1805.0,0.65645556]
[1743921659487,1.21109403,1805.2,1804.8,4.70594]
[1743921659683,0.7894,1805.1,1804.9,0.65652892]
[1743921659856,4.6674,1805.1,1804.7,7.7575]
[1743921660059,4.6674,1805.1,1804.8,0.65660228]
[1743921660564,5.51317652,1805.2,1804.8,0.65660228]
[1743921660766,5.51317652,1805.2,1804.9,0.8274]
[1743921661093,5.51317652,1805.2,1805.0,0.65645556]
[1743921661788,4.42921765,1805.1,1805.0,0.65645556]
[1743921662154,4.42921765,1805.1,1804.7,4.7061]
[1743921662357,3.8779,1805.1,1805.0,0.65645556]
[1743921662558,3.8779,1805.1,1804.7,4.7061]
[1743921662762,3.8779,1805.1,1805.0,0.65645556]
[1743921662958,3.8779,1805.1,1804.7,4.7061]
[1743921663299,3.8779,1805.1,1804.7,4.7615048]
[1743921663463,3.8779,1805.1,1804.8,0.65660228]
[1743921664460,0.7615,1805.0,1804.8,0.65660228]
[1743921666795,4.63962,1805.0,1804.8,0.65660228]
[1743921668523,11.511372,1805.0,1804.8,0.65660228]
[1743921668887,11.511372,1805.0,1804.6,3.87892]
[1743921669088,11.511372,1805.0,1804.7,0.65667565]
[1743921669418,11.511372,1805.0,1804.6,3.87892]
[1743921669595,4.0,1804.9,1804.8,0.65660228]
[1743921669799,4.0,1804.9,1804.7,0.65667565]
[1743921669999,4.0,1804.9,1804.8,0.65660228]
[1743921670508,9.4294672,1804.9,1804.8,0.65660228]
[1743921670688,9.4294672,1804.9,1804.5,4.63566]
[1743921671023,9.4294672,1804.9,1804.6,0.65674903]
[1743921672330,5.4294672,1804.9,1804.6,0.65674903]
[1743921674091,9.3079472,1804.9,1804.6,0.65674903]
[1743921674693,0.93079472,1804.8,1804.6,0.65674903]
[1743921674889,9.3079472,1804.9,1804.6,0.65674903]
[1743921675422,3.87855,1804.8,1804.6,0.65674903]
[1743921675825,3.87855,1804.8,1804.5,3.87917]
[1743921676021,5.4294672,1804.9,1804.7,0.65747765]
[1743921676223,1.5511372,1804.9,1804.7,0.7636]
[1743921676421,3.0,1804.9,1804.8,0.65740428]
[1743921676585,7.0,1804.9,1804.8,0.65740428]
[1743921676791,4.0,1804.9,1804.8,4.53594428]
[1743921677191,6.02,1805.0,1804.8,8.41448428]
[1743921677421,6.02,1805.0,1804.8,5.45375271]
[1743921677797,0.42431249,1805.2,1804.9,3.87833]
[1743921678026,9.81959,1805.3,1804.9,7.75654]
[1743921678341,9.81959,1805.3,1805.0,0.65815291]
[1743921678713,3.0,1805.3,1805.0,5.29983291]
[1743921678918,3.0,1805.3,1805.0,9.17779291]
[1743921679109,3.0,1805.3,1805.0,5.29971291]
[1743921679311,3.0,1805.3,1805.0,6.2175152]
[1743921680338,6.87748,1805.3,1805.0,1.42175291]
[1743921680836,3.0,1805.3,1805.0,1.42175291]
[1743921681074,3.0,1805.3,1805.0,0.65815291]
[1743921681379,3.0,1805.3,1805.0,4.53626291]
[1743921681535,8.1106803,1805.4,1805.0,4.53626291]
[1743921681736,10.66315,1805.5,1805.1,7.75564]
[1743921681962,6.02,1805.5,1805.2,4.6412]
[1743921682175,4.0,1805.3,1805.2,5.29776992]
[1743921682468,6.02,1805.5,1805.2,5.29776992]
[1743921682626,6.02,1805.5,1805.2,5.29771992]
[1743921682825,6.02,1805.5,1805.3,3.87745]
[1743921683060,4.0,1805.4,1805.3,3.87745]
[1743921683266,5.05445837,1805.7,1805.4,3.87717]
[1743921683267,0.41156837,1805.7,1805.4,3.87717]
[1743921683473,4.2333903,1805.8,1805.5,4.53327806]
[1743921684064,1.05173038,1805.9,1805.6,0.7804]
[1743921684363,3.69905582,1805.9,1805.7,0.65609145]
[1743921684665,5.86951243,1805.9,1805.6,0.7804]
[1743921684873,4.57523582,1805.9,1805.7,0.65609145]
[1743921685172,7.57523582,1805.9,1805.5,3.87687]
[1743921685676,7.57523582,1805.9,1805.6,0.65616475]
[1743921685984,4.66601,1805.7,1805.6,0.65616475]
[1743921686273,8.1099403,1805.8,1805.5,0.7959]
[1743921686651,8.1099403,1805.8,1805.6,0.65616475]
[1743921686862,9.36977991,1805.8,1805.6,0.65616475]
[1743921687056,13.24634991,1805.8,1805.6,0.65616475]
[1743921687276,16.24634991,1805.8,1805.7,0.65609145]
[1743921687982,12.36977991,1805.8,1805.4,4.67302]
[1743921688185,12.36977991,1805.8,1805.7,0.65609145]
[1743921688362,12.36977991,1805.8,1805.4,4.67302]
[1743921688985,11.1099403,1805.8,1805.5,0.65623806]
[1743921689674,11.8697103,1805.6,1805.5,0.65623806]
[1743921689870,3.87705,1805.5,1805.1,3.87771]
[1743921690050,3.87705,1805.5,1805.2,0.65576818]
[1743921690381,3.87705,1805.5,1805.1,3.87771]
[1743921690682,3.87705,1805.5,1805.3,0.65569485]
[1743921690986,3.87705,1805.5,1805.4,0.65562153]
[1743921691283,1.57467603,1805.5,1805.4,0.65562153]
[1743921691451,1.57467603,1805.5,1805.2,3.87767]
[1743921691653,1.57467603,1805.5,1805.4,0.65562153]
[1743921691848,1.57467603,1805.5,1805.3,0.65569485]
[1743921692083,11.8697103,1805.6,1805.4,0.65562153]
[1743921692595,7.2333903,1805.6,1805.5,0.65554821]
[1743921692998,7.2333903,1805.6,1805.3,4.65845]
[1743921693207,3.0,1805.6,1805.5,0.65554821]
[1743921693369,3.0,1805.6,1805.4,3.87724]
[1743921693571,8.1097803,1805.8,1805.5,0.65545492]
[1743921693892,3.0,1805.7,1805.5,0.65545492]
[1743921697373,3.0,1805.7,1805.5,4.53246492]
[1743921697573,4.2333903,1805.8,1805.5,4.53246492]
[1743921698092,0.7595,1805.7,1805.5,4.53246492]
[1743921698396,8.8693703,1805.8,1805.5,0.65545492]
[1743921698597,0.27613038,1805.9,1805.8,3.87639]
[1743921698896,6.02,1806.3,1805.9,3.87618]
[1743921699194,3.0,1806.3,1806.0,0.65469698]
[1743921699793,3.0,1806.3,1806.0,4.53065698]
[1743921700700,3.41970923,1806.3,1806.0,4.53065698]
[1743921700900,4.9928903,1806.1,1806.0,0.65469698]
[1743921701103,8.8686403,1806.1,1805.7,7.75297]
[1743921701305,8.8686403,1806.1,1805.8,0.65415399]
[1743921702116,3.87598,1806.0,1805.8,0.65415399]
[1743921702314,3.87598,1806.0,1805.6,13.75048]
[1743921702716,3.87598,1806.0,1805.7,0.65422728]
[1743921704083,8.15044203,1806.0,1805.7,0.65422728]
[1743921704723,0.7894,1805.8,1805.7,0.65422728]
[1743921704892,3.87678,1805.7,1805.3,3.87738]
[1743921705097,4.2333903,1805.6,1805.4,0.65411156]
[1743921705408,4.2333903,1805.6,1805.3,3.87738]
[1743921705614,4.2333903,1805.6,1805.5,0.65403824]
[1743921705792,4.2333903,1805.6,1805.4,0.65411156]
[1743921705995,4.2333903,1805.6,1805.3,3.87738]
[1743921706301,4.65092995,1805.6,1805.5,0.65403824]
[1743921706818,4.65092995,1805.6,1805.3,3.87738]
[1743921707113,4.65092995,1805.6,1805.5,0.65403824]
[1743921707321,5.50370095,1805.6,1805.4,0.65411156]
[1743921707527,5.50370095,1805.6,1805.5,0.65403824]
[1743921707827,0.7894,1805.5,1805.2,3.87757]
[1743921709927,4.2333903,1805.4,1805.1,3.8779]
[1743921710132,5.33766933,1805.4,1805.1,3.8779]
[1743921713626,5.33766933,1805.4,1805.2,0.65425821]
[1743921713817,5.33766933,1805.4,1805.1,3.8779]
[1743921714017,5.33766933,1805.4,1805.3,0.65418488]
[1743921714220,5.33766933,1805.4,1805.1,3.8779]
[1743921714419,5.33766933,1805.4,1805.3,0.65418488]
[1743921714619,5.33766933,1805.4,1805.2,0.65425821]
[1743921714817,5.33766933,1805.4,1805.1,3.8779]
[1743921715131,5.33766933,1805.4,1805.3,0.65418488]
[1743921715431,5.33766933,1805.4,1805.3,0.65504238]
[1743921715632,5.33766933,1805.4,1805.1,7.75571]
[1743921715808,4.2333903,1805.4,1805.3,0.65504238]
[1743921716000,4.2333903,1805.4,1805.2,0.65511571]
[1743921716200,4.2333903,1805.4,1805.1,3.87781]
[1743921716401,4.2333903,1805.4,1805.3,0.65504238]
[1743921716602,4.2333903,1805.4,1805.1,3.87781]
[1743921716803,4.2333903,1805.4,1805.3,0.65504238]
[1743921717017,5.72538733,1805.4,1805.1,3.87781]
[1743921717226,5.72538733,1805.4,1805.3,0.65504238]
[1743921718027,5.72538733,1805.4,1805.1,7.75557]
[1743921718306,4.2333903,1805.4,1805.3,0.65504238]
[1743921718505,4.2333903,1805.4,1805.2,0.65511571]
[1743921718738,4.2333903,1805.4,1805.3,0.65504238]
[1743921719395,4.2333903,1805.4,1805.1,3.87776]
[1743921719596,4.2333903,1805.4,1805.3,0.65504238]
[1743921719799,5.72538733,1805.4,1805.2,0.65511571]
[1743921720031,5.72538733,1805.4,1805.1,3.87776]
[1743921720221,5.72538733,1805.4,1805.3,0.65504238]
[1743921720427,6.8094,1805.5,1805.1,3.87776]
[1743921720629,6.02,1805.5,1805.3,5.35042238]
[1743921720847,6.02,1805.5,1805.3,4.69538]
[1743921721135,6.02,1805.5,1805.4,4.53221906]
[1743921721318,6.02,1805.5,1805.4,6.19117897]
[1743921721652,8.1095803,1805.9,1805.4,6.19117897]
[1743921721653,6.02,1805.9,1805.7,4.69452]
[1743921721818,3.0,1806.0,1805.7,4.69452]
[1743921722016,3.0,1806.0,1805.8,0.65536555]
[1743921722218,3.0,1806.0,1805.7,4.69452]
[1743921722615,11.0427903,1806.1,1805.8,4.53163555]
[1743921722846,11.0427903,1806.1,1805.9,3.87618]
[1743921722847,6.02,1806.1,1805.9,3.87618]
[1743921723348,6.02,1806.1,1806.0,0.65484615]
[1743921726462,3.42486557,1806.2,1806.0,0.65484615]
[1743921726619,3.0,1806.2,1806.0,4.53078615]
[1743921726816,3.0,1806.2,1806.0,9.23569615]
[1743921727656,4.64220909,1806.3,1806.0,10.15926577]
[1743921727850,4.64220909,1806.3,1806.0,6.28332577]
[1743921730660,4.64220909,1806.3,1806.0,10.15914577]
[1743921730857,4.64220909,1806.3,1806.0,6.28332577]
[1743921735658,4.64220909,1806.3,1806.1,3.87565]
[1743921735839,4.64220909,1806.3,1806.1,4.89154758]
[1743921736039,4.64220909,1806.3,1806.2,0.65279848]
[1743921736450,4.64220909,1806.3,1806.1,4.89154758]
[1743921736627,4.64220909,1806.3,1806.2,0.65279848]
[1743921736958,4.64220909,1806.3,1806.2,4.52832848]
[1743921737468,4.64220909,1806.3,1806.2,0.65279848]
[1743921737759,4.64220909,1806.3,1806.1,3.87565]
[1743921737964,4.64220909,1806.3,1806.2,0.65279848]
[1743921738579,4.64220909,1806.3,1806.1,7.75126]
[1743921738734,4.64220909,1806.3,1806.1,4.733646]
[1743921738935,4.64220909,1806.3,1806.2,0.65279848]
[1743921739665,4.64220909,1806.3,1806.1,4.733646]
[1743921739964,4.64220909,1806.3,1806.2,0.65279848]
[1743921740264,4.64220909,1806.3,1806.1,4.733646]
[1743921740463,4.64220909,1806.3,1806.2,0.65279848]
[1743921740667,4.64220909,1806.3,1806.1,4.733646]
[1743921740838,4.64220909,1806.3,1806.2,0.65279848]
[1743921741249,4.64220909,1806.3,1806.1,4.733646]
[1743921741449,4.64220909,1806.3,1806.2,0.65257489]
[1743921741666,4.64220909,1806.3,1806.1,4.733646]
[1743921741873,4.64220909,1806.3,1806.2,0.65257489]
[1743921742547,4.64220909,1806.3,1806.1,4.733646]
[1743921742870,4.64220909,1806.3,1806.2,0.65257489]
[1743921743038,4.64220909,1806.3,1806.1,0.858036]
[1743921743039,8.51756909,1806.3,1806.0,4.70506]
[1743921743242,8.51756909,1806.3,1806.2,0.65257489]
[1743921743444,4.64220909,1806.3,1806.0,4.70506]
[1743921743761,4.64220909,1806.3,1806.2,0.65257489]
[1743921744177,8.64220909,1806.3,1806.2,0.65257489]
[1743921744342,8.64220909,1806.3,1806.0,8.58088]
[1743921744542,8.64220909,1806.3,1806.2,0.65257489]
[1743921745055,4.64220909,1806.3,1806.1,3.87574]
[1743921745254,4.64220909,1806.3,1806.2,0.65257489]
[1743921745482,0.40881879,1806.3,1806.1,3.87562]
[1743921745648,3.0,1806.4,1806.2,4.52810489]
[1743921746542,3.0,1806.4,1806.3,0.8268]
[1743921746741,7.0,1806.4,1806.3,1.47920848]
[1743921747749,7.0,1806.4,1806.3,0.65240848]
[1743921748150,3.0,1806.4,1806.3,0.65240848]